bitfinex-derivatives/quotes_SOLF0:USTF0_20250831
["timestamp","ask_amount","ask_price","bid_price","bid_amount"]
[1756661245633,122.42,205.48,205.41,4.35632786]
[1756661245831,1.01,205.47,205.42,4.35632786]
[1756661246027,1.01,205.47,205.43,4.35632786]
[1756661246231,1.01,205.47,205.35,7.63]
[1756661246232,122.42,205.48,205.35,7.63]
[1756661246435,122.42,205.48,205.36,4.32635123]
[1756661246737,122.42,205.48,205.37,4.32635123]
[1756661246927,1.01,205.44,205.38,4.32635123]
[1756661247132,1.01,205.42,205.39,4.32635123]
[1756661247433,122.38,205.43,205.4,4.32635123]
[1756661247637,123.39,205.42,205.35,7.63]
[1756661247934,123.39,205.42,205.36,4.32376362]
[1756661248236,1.01,205.41,205.37,4.32376362]
[1756661248438,122.38,205.42,205.38,4.32376362]
[1756661248629,1.01,205.41,205.39,4.32376362]
[1756661248832,1.01,205.41,205.4,4.32376362]
[1756661249537,122.38,205.42,205.32,10.61789404]
[1756661249724,1.01,205.41,205.33,4.32106187]
[1756661249930,1.01,205.41,205.34,4.32106187]
[1756661250127,1.01,205.41,205.35,4.32106187]
[1756661250336,2.98789404,205.44,205.36,4.32106187]
[1756661250337,32.94,205.4,205.36,4.32106187]
[1756661250535,32.94,205.4,205.37,4.32106187]
[1756661250838,1.01,205.39,205.38,4.32106187]
[1756661252934,64.38,205.39,205.38,4.32106187]
[1756661253129,64.38,205.39,205.38,11.95106187]
[1756661253330,93.76,205.39,205.38,11.95106187]
[1756661256640,93.76,205.39,205.38,7.63]
[1756661256842,93.76,205.39,205.38,11.94115641]
[1756661257044,94.77,205.39,205.38,4.31115641]
[1756661257244,121.48,205.39,205.38,4.31115641]
[1756661257448,121.48,205.39,205.38,11.94115641]
[1756661258646,122.24,205.41,205.38,11.94115641]
[1756661258945,122.24,205.41,205.39,4.31115641]
[1756661259147,122.22,205.44,205.4,4.31115641]
[1756661259348,123.21,205.44,205.41,4.31115641]
[1756661259542,123.21,205.44,205.42,4.31115641]
[1756661259847,123.21,205.44,205.35,2.98789404]
[1756661260047,123.21,205.44,205.37,7.67]
[1756661260343,123.21,205.44,205.38,4.31303404]
[1756661260550,123.21,205.44,205.39,4.31303404]
[1756661260751,122.22,205.44,205.4,11.98303404]
[1756661260956,0.99,205.43,205.41,4.31303404]
[1756661261156,0.99,205.43,205.42,4.31303404]
[1756661261360,0.99,205.48,205.42,4.31303404]
[1756661261559,122.2,205.47,205.4,7.67]
[1756661261760,122.2,205.47,205.41,4.31250548]
[1756661261960,0.99,205.48,205.42,4.31250548]
[1756661262259,123.19,205.47,205.43,11.98250548]
[1756661262462,123.19,205.47,205.44,4.31250548]
[1756661262655,123.19,205.47,205.44,7.67]
[1756661262960,0.99,205.47,205.44,7.67]
[1756661263560,122.18,205.46,205.45,4.3107111]
[1756661264962,328.43,205.49,205.45,11.9807111]
[1756661265159,328.43,205.49,205.42,7.67]
[1756661265359,122.16,205.48,205.44,7.67]
[1756661265559,122.16,205.48,205.45,11.977998]
[1756661265859,122.16,205.48,205.46,4.307998]
[1756661266058,122.16,205.48,205.45,7.67]
[1756661266258,122.16,205.48,205.46,4.30799636]
[1756661266459,122.16,205.48,205.45,7.67]
[1756661266655,122.16,205.48,205.46,4.30817524]
[1756661266860,123.15,205.48,205.41,10.65789404]
[1756661267165,122.14,205.47,205.42,4.30817524]
[1756661267458,123.13,205.47,205.43,7.67]
[1756661267660,123.13,205.47,205.44,4.30858476]
[1756661267861,123.13,205.47,205.45,4.30858476]
[1756661268158,0.99,205.47,205.46,4.30858476]
[1756661268359,123.11,205.47,205.46,4.30858476]
[1756661268763,0.99,205.47,205.46,4.30858476]
[1756661268963,122.12,205.47,205.46,4.30858476]
[1756661269264,122.12,205.47,205.46,11.97858476]
[1756661269654,122.12,205.47,205.46,4.30858476]
[1756661270462,123.11,205.47,205.46,4.30858476]
[1756661270758,0.99,205.46,205.42,7.67]
[1756661271059,0.99,205.46,205.43,4.29703479]
[1756661271262,0.99,205.46,205.44,4.29703479]
[1756661271462,0.99,205.46,205.45,4.29703479]
[1756661272257,328.43,205.49,205.45,11.96703479]
[1756661272455,122.1,205.48,205.46,4.29703479]
[1756661272654,328.43,205.49,205.47,4.29703479]
[1756661272855,327.44,205.49,205.48,4.29703479]
[1756661273059,449.52,205.49,205.48,11.96703479]
[1756661273762,327.44,205.49,205.48,11.96703479]
[1756661273962,449.52,205.49,205.48,11.96703479]
[1756661274166,0.99,205.63,205.49,7.67]
[1756661274360,0.99,205.61,205.51,7.67]
[1756661274555,10.74789404,205.62,205.51,7.67]
[1756661275460,0.99,205.61,205.51,7.67]
[1756661275866,10.74789404,205.62,205.51,7.67]
[1756661276166,0.99,205.61,205.51,7.67]
[1756661276560,33.66,205.6,205.51,7.67]
[1756661276965,33.66,205.6,205.52,2.98789404]
[1756661277562,65.64,205.59,205.53,7.67]
[1756661279266,0.99,205.58,205.44,7.67]
[1756661279467,0.99,205.58,205.5,7.67]
[1756661280670,65.88,205.57,205.5,7.67]
[1756661281262,0.99,205.58,205.5,7.67]
[1756661281468,64.08,205.57,205.5,7.67]
[1756661281769,62.56,205.57,205.52,7.67]
[1756661282062,62.56,205.57,205.51,2.98789404]
[1756661282469,61.32,205.57,205.51,10.65789404]
[1756661283264,0.99,205.56,205.51,10.65789404]
[1756661283468,61.32,205.57,205.51,10.65789404]
[1756661283770,61.1,205.56,205.49,2.98789404]
[1756661283972,61.1,205.56,205.5,7.67]
[1756661284772,0.99,205.58,205.5,7.67]
[1756661284980,60.42,205.57,205.5,7.67]
[1756661286168,0.99,205.58,205.5,7.67]
[1756661286367,3.76,205.57,205.5,7.67]
[1756661287067,0.99,205.58,205.5,7.67]
[1756661287271,7.52,205.56,205.5,7.67]
[1756661288469,7.52,205.56,205.44,7.89]
[1756661288673,7.52,205.56,205.46,2.98789404]
[1756661288876,1.0,205.55,205.46,2.98789404]
[1756661289174,1.0,205.55,205.46,10.87789404]
[1756661289674,10.50789404,205.56,205.46,7.89]
[1756661289971,1.0,205.55,205.46,7.89]
[1756661290469,10.50789404,205.56,205.46,7.89]
[1756661291073,7.52,205.56,205.41,7.89]
[1756661291271,2.98789404,205.53,205.41,7.89]
[1756661291471,1.0,205.52,205.41,7.89]
[1756661291676,32.82,205.51,205.41,7.89]
[1756661292076,1.0,205.52,205.41,7.89]
[1756661292280,62.16,205.51,205.41,7.89]
[1756661292478,90.02,205.5,205.41,7.89]
[1756661294479,91.02,205.5,205.41,7.89]
[1756661295076,1.0,205.48,205.41,7.89]
[1756661295975,327.02,205.58,205.41,7.89]
[1756661296177,1.0,205.51,205.44,7.89]
[1756661298082,41.38,205.5,205.44,7.89]
[1756661299380,41.38,205.5,205.45,4.34257105]
[1756661299581,1.0,205.49,205.46,4.34257105]
[1756661299773,1.0,205.49,205.47,4.34257105]
[1756661299977,1.0,205.49,205.48,4.34257105]
[1756661301678,1.0,205.51,205.48,4.34257105]
[1756661301880,121.86,205.5,205.49,4.34257105]
[1756661302087,1.0,205.5,205.49,4.34257105]
[1756661302278,122.86,205.5,205.49,4.34257105]
[1756661303482,1.0,205.5,205.49,4.34257105]
[1756661303685,122.86,205.5,205.49,4.34257105]
[1756661308484,122.84,205.5,205.49,4.34257105]
[1756661308790,122.84,205.5,205.42,7.89]
[1756661308986,122.84,205.5,205.43,4.35162422]
[1756661309188,122.84,205.5,205.44,4.35162422]
[1756661309385,122.84,205.5,205.45,4.35162422]
[1756661309590,0.98,205.49,205.46,4.35162422]
[1756661309788,0.98,205.49,205.47,4.35162422]
[1756661309989,0.98,205.49,205.48,4.35162422]
[1756661312590,3.96789404,205.49,205.48,4.35162422]
[1756661313393,4.44789404,205.49,205.48,4.35162422]
[1756661316598,126.22789404,205.49,205.48,4.35162422]
[1756661317296,4.44789404,205.49,205.48,4.35162422]
[1756661317497,126.22789404,205.49,205.48,4.35162422]
[1756661318894,126.20789404,205.49,205.48,4.35162422]
[1756661319398,126.20789404,205.49,205.42,7.89]
[1756661319595,125.72789404,205.49,205.43,4.34963234]
[1756661319796,1.0,205.48,205.44,11.79963234]
[1756661320094,1.0,205.48,205.45,4.34963234]
[1756661320293,1.0,205.48,205.46,4.34963234]
[1756661320494,1.0,205.48,205.47,4.34963234]
[1756661321290,122.76,205.48,205.47,4.34963234]
[1756661321894,1.0,205.48,205.47,4.34963234]
[1756661322098,122.76,205.48,205.47,4.34963234]
[1756661322295,1.0,205.51,205.47,11.79963234]
[1756661322504,121.74,205.5,205.48,11.79963234]
[1756661322695,121.74,205.5,205.49,4.34963234]
[1756661323096,122.74,205.5,205.49,4.34963234]
[1756661324700,121.74,205.5,205.49,4.34963234]
[1756661325399,121.72,205.5,205.49,4.3555943]
[1756661325797,1.0,205.51,205.49,4.3555943]
[1756661326003,327.12,205.52,205.51,7.45]
[1756661326303,327.12,205.52,205.51,11.8055943]
[1756661326504,448.84,205.52,205.51,11.8055943]
[1756661326707,327.12,205.52,205.51,11.8055943]
[1756661326913,448.84,205.52,205.51,11.8055943]
[1756661328407,327.12,205.52,205.51,11.8055943]
[1756661328607,121.7,205.52,205.51,11.8055943]
[1756661329701,1.0,205.58,205.51,11.8055943]
[1756661329907,122.68,205.57,205.53,7.45]
[1756661330102,121.68,205.56,205.54,4.3555943]
[1756661330301,121.68,205.56,205.55,4.36039449]
[1756661331006,122.68,205.56,205.55,4.36039449]
[1756661332904,122.66,205.56,205.55,4.36039449]
[1756661335110,1.0,205.56,205.55,4.36039449]
[1756661335311,122.64,205.56,205.55,4.36039449]
[1756661337307,1.0,205.56,205.55,4.36039449]
[1756661337507,122.62,205.56,205.55,4.36039449]
[1756661340813,122.62,205.56,205.49,7.45]
[1756661341014,122.62,205.56,205.5,4.37817543]
[1756661341215,121.62,205.56,205.51,4.37817543]
[1756661341509,1.0,205.55,205.52,4.37817543]
[1756661341711,121.62,205.56,205.53,4.37817543]
[1756661341913,1.0,205.55,205.54,4.37817543]
[1756661342109,122.58,205.55,205.54,4.37817543]
[1756661342414,1.0,205.55,205.54,4.37817543]
[1756661342716,1.0,205.55,205.44,4.09756619]
[1756661342717,122.06,205.55,205.44,7.45]
[1756661342905,3.98789404,205.51,205.44,7.45]
[1756661343105,121.58,205.5,205.44,7.45]
[1756661343506,327.06,205.56,205.46,7.45]
[1756661343507,121.58,205.49,205.46,7.45]
[1756661343913,121.56,205.49,205.46,7.45]
[1756661345016,327.06,205.56,205.47,0.48]
[1756661345213,121.56,205.55,205.48,7.45]
[1756661346320,327.06,205.56,205.48,7.45]
[1756661346321,327.06,205.56,205.48,10.43789404]
[1756661346519,121.56,205.55,205.49,7.45]
[1756661347118,121.56,205.54,205.49,7.45]
[1756661348328,121.54,205.53,205.49,7.45]
[1756661349018,121.54,205.52,205.49,7.45]
[1756661349218,327.06,205.56,205.51,2.98789404]
[1756661349625,121.52,205.55,205.51,2.98789404]
[1756661349824,121.52,205.55,205.52,7.6]
[1756661350324,121.52,205.55,205.51,2.98789404]
[1756661350714,121.52,205.55,205.52,7.6]
[1756661351124,121.52,205.55,205.51,2.98789404]
[1756661351524,121.52,205.54,205.51,2.98789404]
[1756661351726,121.52,205.54,205.52,7.6]
[1756661352023,121.52,205.54,205.51,2.98789404]
[1756661352224,121.52,205.54,205.52,7.6]
[1756661352421,121.5,205.53,205.52,7.6]
[1756661353026,327.06,205.56,205.52,7.6]
[1756661353220,121.5,205.55,205.51,2.98789404]
[1756661353528,327.06,205.56,205.52,7.6]
[1756661353732,121.5,205.54,205.51,2.98789404]
[1756661353930,121.5,205.54,205.52,7.6]
[1756661354130,121.5,205.54,205.51,2.98789404]
[1756661354427,121.5,205.54,205.52,7.6]
[1756661354625,327.06,205.56,205.51,2.98789404]
[1756661354826,121.5,205.55,205.51,2.98789404]
[1756661355022,327.06,205.56,205.51,2.98789404]
[1756661355328,327.06,205.56,205.52,7.6]
[1756661355528,121.48,205.55,205.52,7.6]
[1756661355730,121.48,205.55,205.51,2.98789404]
[1756661356329,121.48,205.54,205.51,2.98789404]
[1756661356524,121.48,205.54,205.52,7.6]
[1756661356929,121.46,205.54,205.51,2.98789404]
[1756661357326,121.46,205.54,205.52,7.6]
[1756661357728,121.46,205.54,205.51,2.98789404]
[1756661357929,121.46,205.54,205.52,7.6]
[1756661358733,121.46,205.54,205.51,2.98789404]
[1756661359129,121.46,205.54,205.52,7.6]
[1756661359828,121.46,205.54,205.53,2.98789404]
[1756661360029,121.46,205.54,205.53,10.58789404]
[1756661360730,327.06,205.56,205.53,10.58789404]
[1756661360938,121.42,205.55,205.54,7.6]
[1756661361130,121.42,205.55,205.5,7.6]
[1756661361326,122.39,205.55,205.52,2.98789404]
[1756661361529,122.39,205.55,205.53,7.6]
[1756661361731,121.42,205.55,205.53,7.6]
[1756661362030,327.06,205.56,205.54,1.90856874]
[1756661362232,1.90856874,205.63,205.55,1.90856874]
[1756661362429,0.97,205.62,205.55,1.90856874]
[1756661362629,0.97,205.6,205.55,1.90856874]
[1756661362836,30.3,205.61,205.55,1.90856874]
[1756661363032,0.97,205.62,205.55,1.90856874]
[1756661363232,68.42,205.6,205.55,1.90856874]
[1756661363528,1.90856874,205.62,205.55,1.90856874]
[1756661363733,0.97,205.58,205.55,1.90856874]
[1756661363928,71.87,205.57,205.55,1.90856874]
[1756661364130,121.4,205.56,205.55,1.90856874]
[1756661366726,1.0,205.62,205.55,1.90856874]
[1756661366930,29.06,205.61,205.57,1.90856874]
[1756661367128,1.0,205.6,205.57,1.90856874]
[1756661367535,1.0,205.6,205.57,9.50856874]
[1756661367728,5.94,205.59,205.57,1.90856874]
[1756661369539,1.0,205.58,205.57,1.90856874]
[1756661370137,5.94,205.59,205.57,1.90856874]
[1756661370335,21.66,205.6,205.57,1.90856874]
[1756661370534,1.0,205.59,205.53,7.6]
[1756661371040,1.0,205.59,205.53,11.69756619]
[1756661371235,1.0,205.59,205.53,4.09756619]
[1756661371738,1.0,205.59,205.58,1.90856874]
[1756661374338,1.0,205.59,205.56,7.6]
[1756661374540,1.0,205.59,205.58,1.90856874]
[1756661375344,46.84,205.6,205.57,1.90856874]
[1756661375544,1.0,205.59,205.57,1.90856874]
[1756661376849,73.2,205.61,205.57,1.90856874]
[1756661377646,1.0,205.6,205.57,1.90856874]
[1756661377849,73.2,205.61,205.57,1.90856874]
[1756661378450,0.99,205.6,205.57,1.90856874]
[1756661378946,73.2,205.61,205.57,1.90856874]
[1756661380051,0.99,205.6,205.57,1.90856874]
[1756661380353,73.2,205.61,205.57,1.90856874]
[1756661380558,0.99,205.6,205.57,1.90856874]
[1756661380749,73.2,205.61,205.57,9.25856874]
[1756661381148,0.99,205.6,205.57,9.25856874]
[1756661381846,108.58,205.61,205.57,9.25856874]
[1756661382048,0.99,205.6,205.57,9.25856874]
[1756661382549,108.58,205.61,205.57,9.25856874]
[1756661382749,0.99,205.6,205.57,9.25856874]
[1756661383347,108.58,205.61,205.57,1.90856874]
[1756661383652,0.99,205.6,205.57,1.90856874]
[1756661383853,108.58,205.61,205.57,1.90856874]
[1756661384054,0.99,205.6,205.57,1.90856874]
[1756661384349,108.58,205.61,205.57,1.90856874]
[1756661384748,0.99,205.6,205.57,1.90856874]
[1756661384954,1.90856874,205.58,205.52,4.09756619]
[1756661385155,1.90856874,205.54,205.46,1.90856874]
[1756661385459,1.90856874,205.52,205.45,1.90856874]
[1756661385755,17.3,205.51,205.45,1.90856874]
[1756661386150,19.7,205.5,205.46,1.90856874]
[1756661386556,0.99,205.49,205.46,1.90856874]
[1756661386850,19.7,205.5,205.46,1.90856874]
[1756661387055,0.99,205.49,205.46,1.90856874]
[1756661387245,19.7,205.5,205.46,1.90856874]
[1756661387446,0.99,205.49,205.46,1.90856874]
[1756661387656,6.0,205.5,205.48,1.90856874]
[1756661387855,0.99,205.5,205.48,1.90856874]
[1756661388057,0.99,205.5,205.47,7.35]
[1756661390155,10.34,205.51,205.47,7.35]
[1756661390355,0.99,205.5,205.47,7.35]
[1756661390553,14.2,205.51,205.47,7.35]
[1756661390751,0.99,205.5,205.47,7.35]
[1756661390950,0.99,205.5,205.45,7.35]
[1756661391149,0.99,205.5,205.44,7.08206852]
[1756661391354,0.99,205.5,205.45,7.35]
[1756661391755,0.99,205.5,205.44,7.08206852]
[1756661392153,0.99,205.5,205.45,7.35]
[1756661392356,0.99,205.5,205.45,4.09756619]
[1756661392554,0.99,205.5,205.46,7.35]
[1756661393360,0.99,205.5,205.45,4.09756619]
[1756661393559,8.73,205.52,205.46,7.35]
[1756661395161,0.99,205.52,205.46,7.35]
[1756661397556,0.99,205.52,205.44,2.98450233]
[1756661397557,15.60450233,205.53,205.44,4.09756619]
[1756661397964,0.99,205.52,205.44,4.09756619]
[1756661400263,15.60450233,205.53,205.44,4.09756619]
[1756661400655,0.99,205.52,205.44,4.09756619]
[1756661401059,123.14,205.51,205.44,4.09756619]
[1756661401257,123.14,205.5,205.45,7.35]
[1756661401458,123.14,205.5,205.44,4.09756619]
[1756661401660,123.14,205.5,205.45,7.35]
[1756661402063,123.1,205.5,205.45,7.35]
[1756661402364,124.07,205.49,205.45,7.35]
[1756661403063,123.08,205.5,205.45,11.44756619]
[1756661403261,123.08,205.5,205.46,7.35]
[1756661403462,0.99,205.49,205.45,7.35]
[1756661404063,123.08,205.5,205.45,7.35]
[1756661404259,0.99,205.49,205.45,7.35]
[1756661404454,123.08,205.5,205.45,7.35]
[1756661404653,0.99,205.49,205.45,7.35]
[1756661405054,123.08,205.5,205.45,7.35]
[1756661405259,0.99,205.49,205.45,7.35]
[1756661405660,2.98450233,205.52,205.45,7.35]
[1756661405865,123.97,205.51,205.45,7.35]
[1756661407172,0.99,205.49,205.45,7.35]
[1756661407368,122.92,205.5,205.45,7.35]
[1756661407665,122.92,205.5,205.44,4.09756619]
[1756661407666,123.04,205.49,205.44,7.08206852]
[1756661407867,123.04,205.49,205.46,7.95]
[1756661408069,123.04,205.49,205.45,4.09756619]
[1756661408362,123.04,205.49,205.46,7.95]
[1756661408567,123.04,205.49,205.47,7.95]
[1756661409968,124.04,205.49,205.45,12.04756619]
[1756661410166,1.0,205.48,205.44,4.09756619]
[1756661410368,124.04,205.49,205.43,4.09756619]
[1756661411462,124.04,205.49,205.42,7.95]
[1756661411463,1.0,205.48,205.45,7.95]
[1756661411662,123.04,205.49,205.43,4.09756619]
[1756661411861,1.0,205.48,205.43,4.09756619]
[1756661412262,123.04,205.49,205.43,4.09756619]
[1756661412658,124.04,205.49,205.43,4.09756619]
[1756661413066,1.0,205.49,205.43,4.09756619]
[1756661413266,40.4,205.48,205.42,12.04756619]
[1756661413466,1.0,205.46,205.4,4.09756619]
[1756661413664,1.0,205.46,205.37,2.98450233]
[1756661414466,1.0,205.46,205.36,7.95]
[1756661414666,1.0,205.46,205.36,10.93450233]
[1756661415770,80.66,205.47,205.36,7.95]
[1756661415971,1.0,205.45,205.36,7.95]
[1756661416463,2.98450233,205.46,205.36,7.95]
[1756661416768,1.0,205.45,205.36,7.95]
[1756661417371,1.0,205.44,205.33,10.93450233]
[1756661417571,1.0,205.42,205.33,10.93450233]
[1756661418563,1.0,205.42,205.33,7.95]
[1756661418765,2.98450233,205.43,205.33,7.95]
[1756661418966,1.0,205.42,205.33,7.95]
[1756661419365,2.98450233,205.43,205.33,7.95]
[1756661420075,1.0,205.42,205.33,7.95]
[1756661420277,11.34,205.41,205.33,7.95]
[1756661420578,11.34,205.41,205.35,7.95]
[1756661420780,1.0,205.42,205.35,7.95]
[1756661421073,5.06,205.41,205.35,7.95]
[1756661422578,1.0,205.44,205.35,10.93450233]
[1756661422971,33.34,205.43,205.35,2.98450233]
[1756661423175,1.0,205.44,205.36,7.95]
[1756661423573,35.32,205.43,205.36,7.95]
[1756661424580,1.0,205.42,205.28,7.95]
[1756661424782,1.0,205.42,205.26,2.98450233]
[1756661424783,1.0,205.42,205.32,7.95]
[1756661425177,35.34,205.41,205.32,7.95]
[1756661426185,1.0,205.4,205.32,7.95]
[1756661426381,35.34,205.41,205.32,7.95]
[1756661426582,1.0,205.39,205.28,7.95]
[1756661426886,2.98450233,205.4,205.28,7.95]
[1756661427381,2.98450233,205.37,205.29,4.09756619]
[1756661427587,2.98450233,205.37,205.28,12.04756619]
[1756661427588,1.0,205.36,205.28,12.04756619]
[1756661428084,48.02,205.35,205.28,12.04756619]
[1756661430087,48.02,205.35,205.28,7.95]
[1756661431983,1.0,205.34,205.28,7.95]
[1756661432188,1.0,205.34,205.25,76.77962704]
[1756661432488,1.0,205.34,205.25,72.68206085]
[1756661433693,81.78,205.33,205.26,7.95]
[1756661434195,81.78,205.33,205.26,12.04756619]
[1756661434585,112.58,205.33,205.27,7.95]
[1756661435792,1.0,205.34,205.27,7.95]
[1756661435993,122.6,205.33,205.27,7.95]
[1756661436590,1.0,205.34,205.27,7.95]
[1756661436793,122.56,205.34,205.27,7.95]
[1756661438093,1.0,205.36,205.27,7.95]
[1756661438494,15.18,205.35,205.27,7.95]
[1756661438896,1.0,205.36,205.27,7.95]
[1756661439195,39.04,205.35,205.27,7.95]
[1756661439397,71.32,205.34,205.27,7.95]
[1756661439794,101.48,205.34,205.27,7.95]
[1756661440097,101.48,205.34,205.27,12.04756619]
[1756661440297,101.48,205.34,205.28,7.62]
[1756661445501,1.03,205.33,205.28,7.62]
[1756661445700,2.98450233,205.36,205.28,7.62]
[1756661445900,1.03,205.34,205.28,7.62]
[1756661448903,35.93,205.34,205.28,7.62]
[1756661451502,65.95,205.34,205.28,7.62]
[1756661453810,93.93,205.34,205.28,7.62]
[1756661454112,1.03,205.34,205.28,7.62]
[1756661454312,120.43,205.34,205.28,11.71756619]
[1756661454509,1.03,205.34,205.28,11.71756619]
[1756661454710,122.91,205.34,205.28,11.71756619]
[1756661455103,122.89,205.34,205.28,11.71756619]
[1756661456913,1.03,205.34,205.28,11.71756619]
[1756661457114,122.85,205.34,205.28,11.71756619]
[1756661457313,1.03,205.34,205.28,11.71756619]
[1756661459315,122.75,205.34,205.28,11.71756619]
[1756661460415,122.75,205.34,205.29,4.09756619]
[1756661460614,1.03,205.39,205.31,11.71756619]
[1756661460813,1.03,205.39,205.33,2.98450233]
[1756661461216,328.23,205.42,205.34,7.62]
[1756661461416,121.7,205.41,205.34,7.62]
[1756661461916,328.23,205.42,205.34,11.71756619]
[1756661462218,327.2,205.42,205.37,7.62]
[1756661462517,327.2,205.42,205.36,7.08206852]
[1756661462907,327.2,205.42,205.37,7.62]
[1756661463418,327.2,205.42,205.36,7.08206852]
[1756661463715,448.88,205.42,205.37,4.09756619]
[1756661463910,448.88,205.42,205.38,7.62]
[1756661464108,449.88,205.42,205.38,7.62]
[1756661464309,449.88,205.42,205.36,7.08206852]
[1756661464512,449.88,205.42,205.37,7.62]
[1756661464814,1.0,205.48,205.4,7.62]
[1756661465014,28.96,205.47,205.4,7.62]
[1756661465520,1.0,205.48,205.39,2.98450233]
[1756661465521,1.0,205.48,205.42,10.60450233]
[1756661465715,1.0,205.53,205.43,7.62]
[1756661465915,28.22,205.52,205.43,7.62]
[1756661468017,28.22,205.52,205.45,2.98450233]
[1756661468417,121.66,205.51,205.45,10.58450233]
[1756661470419,327.3,205.55,205.46,7.6]
[1756661470619,121.64,205.54,205.48,2.98450233]
[1756661470826,121.64,205.54,205.48,10.58450233]
[1756661471221,328.3,205.55,205.48,10.58450233]
[1756661471426,121.64,205.54,205.49,7.6]
[1756661472021,121.64,205.54,205.48,2.98450233]
[1756661472220,328.3,205.55,205.49,7.6]
[1756661472420,121.64,205.54,205.48,2.98450233]
[1756661473424,121.64,205.54,205.49,7.6]
[1756661473626,449.92,205.55,205.5,2.98450233]
[1756661473924,449.92,205.55,205.51,7.6]
[1756661474318,327.3,205.55,205.51,7.6]
[1756661474522,1.0,205.58,205.51,7.6]
[1756661474718,121.62,205.56,205.51,7.6]
[1756661474926,121.62,205.56,205.5,2.98450233]
[1756661475118,121.62,205.56,205.51,7.6]
[1756661475319,121.62,205.56,205.5,2.98450233]
[1756661475522,1.0,205.58,205.5,2.98450233]
[1756661475724,7.52,205.57,205.51,7.6]
[1756661477129,1.0,205.56,205.5,2.98450233]
[1756661479524,1.0,205.56,205.5,10.58450233]
[1756661479730,34.82,205.56,205.5,10.58450233]
[1756661480926,1.0,205.55,205.48,2.98450233]
[1756661482227,1.0,205.55,205.47,7.6]
[1756661482432,33.82,205.56,205.46,2.98450233]
[1756661482726,2.98450233,205.58,205.46,2.98450233]
[1756661482930,1.0,205.56,205.46,10.58450233]
[1756661483122,29.32,205.57,205.46,10.58450233]
[1756661483327,57.16,205.56,205.46,10.58450233]
[1756661483631,1.0,205.55,205.46,10.58450233]
[1756661484333,57.16,205.56,205.46,10.58450233]
[1756661484728,1.0,205.55,205.46,10.58450233]
[1756661484928,57.16,205.56,205.46,10.58450233]
[1756661485130,1.0,205.55,205.46,10.58450233]
[1756661485432,57.16,205.56,205.46,10.58450233]
[1756661485626,0.99,205.55,205.46,10.58450233]
[1756661486132,57.16,205.56,205.46,10.58450233]
[1756661487130,0.99,205.55,205.46,10.58450233]
[1756661487526,57.16,205.56,205.46,10.58450233]
[1756661488430,0.99,205.55,205.46,10.58450233]
[1756661489031,82.86,205.54,205.46,10.58450233]
[1756661489332,0.99,205.53,205.46,10.58450233]